Cogmind - Beta 13 @@@ ROGUE MODE // 2024.05.28 @ 16:49:35 Player: karotgaemin Result: Destroyed by G-47 Trooper with Particle Gun Performance ------------- Evolutions (2) 1000 Regions Visited (3) 600 Robots Destroyed (61) 305 Value Destroyed (1821) 1821 Prototype IDs (4) 80 Alien Tech Used (0) 0 Bonus (19) 19 TOTAL SCORE: 3825 Bonus ------- High Alert Combat Kills 19 Cogmind --------- Core Integrity 0/550 Matter 62/300 Energy 100/100 System Corruption 0% Temperature Cool (9) Movement Walking (90) Location -8/Materials Parts ------- > --- POWER (1) -------- (None) > --- PROPULSION (2) --- VSS Leg > --- UTILITY (5) ------ Improved Heat Sink Visual Processing Unit Improved Signal Interpreter > --- WEAPON (3) ------- Enhanced Autogun > --- INVENTORY (5) ---- Disposable Heat Sink Improved Terrain Scanner Improved EM Shotgun Minigun Peak State ------------ > --- POWER ------------ Light Nuclear Core > --- PROPULSION ------- Light Treads Advanced Treads > --- UTILITY ---------- Improved Heat Sink Large Storage Unit Visual Processing Unit Improved Signal Interpreter Reaction Control System > --- WEAPON ----------- Enhanced Autogun Enhanced Autogun Katana > --- INVENTORY -------- Ion Engine Ion Engine Light Nuclear Core Light Nuclear Core Improved Heat Sink Disposable Heat Sink Improved Signal Interpreter Improved Terrain Scanner Improved EM Shotgun Flak Cannon Flak Cannon Mace [Rating: 33] Favorites ----------- Power Light Nuclear Core Engine Light Ion Engine Power Core Light Nuclear Core Propulsion Advanced Treads Treads Advanced Treads Leg VSS Leg Wheel Compact Wheel Utility Large Storage Unit Device Sensor Array Storage Large Storage Unit Processor Improved Signal Interpreter Weapon Enhanced Autogun Energy Gun Heavy EM Shotgun Ballistic Gun Enhanced Autogun Ballistic Cannon Flak Cannon Impact Weapon Mace Slashing Weapon Katana Build | -11 -10 -9 -8 ------- Run | Yrd Mat Mat Mat Slots Evolved 4 | . . 2 2 Power . | . . . . Propulsion . | . . . . Utility 3 | . . 2 1 Weapon 1 | . . . 1 Parts Attached 83 | 6 13 32 32 Power 10 | 1 2 3 4 Engine 4 | 1 2 1 . Core 6 | . . 2 4 Reactor . | . . . . Propulsion 17 | 2 5 6 4 Treads 13 | . 4 6 3 Leg 1 | . . . 1 Wheel 3 | 2 1 . . Hover . | . . . . Flight . | . . . . Utility 19 | 1 3 7 8 Device 12 | . 1 6 5 Storage 2 | 1 1 . . Processor 5 | . 1 1 3 Hackware . | . . . . Protection . | . . . . Artifact . | . . . . Weapon 37 | 2 3 16 16 Energy Gun 4 | . 1 1 2 Energy Cannon . | . . . . Ballistic Gun 19 | 2 2 10 5 Ballistic Cannon 8 | . . 2 6 Launcher . | . . . . Special Weapon . | . . . . Impact Weapon 4 | . . 3 1 Slashing Weapon 2 | . . . 2 Piercing Weapon . | . . . . Special Melee Weapon . | . . . . Unidentified Prototypes 4 | . 1 2 1 Parts Lost 28 | . 4 1 23 Power 4 | . . . 4 Propulsion 8 | . 2 1 5 Utility 7 | . 1 . 6 Weapon 9 | . 1 . 8 Highest Loss Streak 16 | . 3 1 16 To Critical Strikes . | . . . . Average Slot Usage (%) 95 | . 95 98 87 Engine 5 | . 14 3 . Core 5 | . . 6 7 Treads 18 | . 14 21 15 Wheel 3 | . 13 . . Device 15 | . 4 20 14 Storage 11 | . 14 11 9 Processor 10 | . 5 11 15 Energy Gun 2 | . 3 . 6 Ballistic Gun 16 | . 24 16 5 Ballistic Cannon 4 | . . 5 8 Naked Turns . | . . . . Heaviest Build 43 | 11 31 41 43 Greatest Support 46 | 32 46 46 44 Greatest Overweight (x) 10 | 1 1 1 10 Average Overweight (x) . | . . . . Largest Inventory Capacity 15 | 8 15 15 15 Average Capacity 14 | 7 13 15 14 Most Carried 15 | 4 14 15 15 Average Carried 11 | 2 7 13 11 Final Capacity 15 | 8 15 15 5 Final Carried 14 | 4 14 14 4 Class Distribution -------------------- 82% | Mutant 9% | Scavenger-Mutant 7% | Scavenger-Tank Dominant Class ---------------- Mutant | -10/Materials Mutant | -9/Materials Scavenger-Tank | -8/Materials Resources | -11 -10 -9 -8 ----------- Run | Yrd Mat Mat Mat Matter Collected 1787 | 193 304 780 510 Remotely . | . . . . Salvage Created 1868 | . 411 859 598 Parts 133 | . 32 63 38 Haulers Intercepted . | . . . . Recyclers Shooed . | . . . . Parts Field Recycled . | . . . . Retrieved Matter . | . . . . Parts Self-Destructed . | . . . . Prevented . | . . . . Kills | -11 -10 -9 -8 ------- Run | Yrd Mat Mat Mat Combat Hostiles Destroyed 52 | . 12 26 14 Melee 5 | . . . 5 Guns 37 | . 12 22 3 Cannons 10 | . . 4 6 Classes Destroyed 11 | . 4 4 3 Worker 1 | . 1 . . Builder 2 | . . 2 . Operator 1 | . . 1 . Watcher 5 | . 3 1 1 Swarmer 16 | . 6 10 . Grunt 24 | . 6 9 9 Brawler 1 | . . . 1 Duelist 1 | . . 1 . Sentry 7 | . . 6 1 Specialist 2 | . . . 2 Heavy 1 | . . . 1 Best Kill Streak 4 | . 4 3 4 Combat Bots Only 4 | . 4 3 4 Max Kills in Single Turn 1 | . 1 1 1 Gunslinging . | . . . . Exploded . | . . . . Melee 1 | . . . 1 Uniques/NPCs Destroyed . | . . . . Combat | -11 -10 -9 -8 -------- Run | Yrd Mat Mat Mat Hostile Shots Fired 389 | . 77 113 199 Missed 94 | . 19 27 48 Damage Taken 4466 | . 700 970 2796 Core 890 | . 232 98 560 Absorbed by Shields . | . . . . Regen/Repaired (Parts) 38 | . . 38 . Core Remaining (%) 60 | 100 7 75 . Volleys Fired 155 | . 39 77 39 Largest 3 | . 2 2 3 Hottest 157 | . 60 88 157 Shots Fired 305 | . 73 154 78 Gun 245 | . 73 128 44 Cannon 60 | . . 26 34 Launcher . | . . . . Special . | . . . . Kinetic 289 | . 67 154 68 Thermal 13 | . 6 . 7 Explosive . | . . . . Electromagnetic 3 | . . . 3 Robot Hit Streak 19 | . 9 19 10 Robot Miss Streak 13 | . 3 13 7 Penetration Max . | . . . . Secondary Targets 7 | . 1 4 2 Max Gunslinging Chain 1 | . 1 1 1 Shots Hit Robots 211 | . 45 97 69 Core Hits 138 | . 26 57 55 Critical Kills 1 | . . 1 . Critical Parts Destroyed 2 | . . 2 . Critical Strikes 6 | . . 3 3 Destroy 1 | . . 1 . Smash 2 | . . 2 . Sever 3 | . . . 3 Melee Attacks 26 | . . 5 21 Impact 5 | . . 5 . Slashing 21 | . . . 21 Piercing . | . . . . Sneak Attacks . | . . . . Combat Hostiles . | . . . . Follow-up Attacks 1 | . . 1 . Damage Inflicted 3865 | . 480 1815 1570 Guns 2199 | . 478 1234 487 Cannons 1148 | . . 504 644 Explosions . | . . . . Melee 505 | . . 66 439 Ramming 13 | . 2 11 . Kinetic 3210 | . 448 1738 1024 Thermal 98 | . 30 . 68 Explosive . | . . . . Electromagnetic 39 | . . . 39 Impact 66 | . . 66 . Slashing 439 | . . . 439 Piercing . | . . . . Highest Corruption 3 | . . 3 . Average Corruption 2 | . . 2 . Corruption Purged . | . . . . Corruption Blocked . | . . . . Effects 26 | . . 26 . Message Errors 9 | . . 9 . Matter Fused 4 | . . 4 . Heat Flow Errors 1 | . . 1 . Energy Discharges 3 | . . 3 . Parts Rejected 1 | . . 1 . Data Loss (minor) 5 | . . 5 . Data Loss (major) 2 | . . 2 . Misfires 1 | . . 1 . Overload Shots . | . . . . Overflow Damage 26 | . . 23 3 Projectiles 3 | . . . 3 Explosions . | . . . . Melee 23 | . . 23 . Knockbacks 19 | . . 4 15 Impact . | . . . . Kinetic 18 | . . 4 14 Secondary 1 | . . . 1 Self-Inflicted Damage 42 | . 42 . . Shots 1 | . 1 . . Rammed 2 | . 1 1 . Targets Rammed 2 | . 1 1 . Kicked . | . . . . Crushed . | . . . . Highest Temperature 264 | . 25 158 264 Average Temperature 49 | . 12 21 80 Received Heat Transfer 1518 | . 276 252 990 Siege Activations . | . . . . Robots Corrupted . | . . . . Combat Hostiles . | . . . . Parts Fried 1 | . . 1 . Impact Corruptions 1 | . . 1 . Robots Melted . | . . . . Combat Hostiles . | . . . . Parts Melted . | . . . . Heat Transferred 223 | . 75 . 148 Parts Sabotaged . | . . . . Parts Stolen . | . . . . Parts Stripped . | . . . . Power Chain Reactions . | . . . . Alert | -11 -10 -9 -8 ------- Run | Yrd Mat Mat Mat Peak Influence 421 | . 189 421 350 Initial 163 | . . 20 163 Average 148 | . 55 175 219 Maximum Alert Level 2 | . . 2 1 Low Security (%) 71 | 100 100 63 51 Level 1 26 | . . 33 48 Level 2 1 | . . 2 . Level 3 . | . . . . Level 4 . | . . . . Level 5 . | . . . . High Security . | . . . . Max Security . | . . . . Squads Dispatched 9 | . 2 3 4 Investigation 2 | . 2 . . Extermination . | . . . . Reinforcement 7 | . . 3 4 Assault . | . . . . Garrison . | . . . . Intercept . | . . . . Searches Triggered . | . . . . Construction Impeded 1 | . . 1 . Haulers Reinforced . | . . . . Active Scanning Responses . | . . . . Cargo Convoy Interrupts . | . . . . Stealth | -11 -10 -9 -8 --------- Run | Yrd Mat Mat Mat Distress Signals 7 | . . 6 1 Communications Jammed . | . . . . Distress Signals . | . . . . Times Spotted 92 | . 19 48 25 Peak Tracking Total 8 | . 4 4 8 Tactical Retreats 6 | . 1 4 1 Traps | -11 -10 -9 -8 ------- Run | Yrd Mat Mat Mat Traps Triggered 4 | . 2 2 . Indirectly . | . . . . Trap Hack Attempts . | . . . . Triggered . | . . . . Disarmed . | . . . . Reprogrammed . | . . . . Reused . | . . . . Traps Extracted . | . . . . Installed . | . . . . Triggered . | . . . . Machines | -11 -10 -9 -8 ---------- Run | Yrd Mat Mat Mat Machines Disabled 1 | . 1 . . Max in Single Turn 1 | . 1 . . Machines Repaired . | . . . . Machines Dismantled . | . . . . Machines Sabotaged . | . . . . Overloaded Fab Kills . | . . . . Hacking | -11 -10 -9 -8 --------- Run | Yrd Mat Mat Mat Machines Accessed 1 | . . 1 . Terminals . | . . . . Fabricators . | . . . . Repair Stations 1 | . . 1 . Recycling Units . | . . . . Scanalyzers . | . . . . Garrison Access . | . . . . Total Hacks 2 | . . 2 . Successful 2 | . . 2 . Failed . | . . . . Catastrophic . | . . . . Database Lockouts . | . . . . Manual . | . . . . Terminals . | . . . . Fabricators . | . . . . Repair Stations 2 | . . 2 . Recycling Units . | . . . . Scanalyzers . | . . . . Garrison Access . | . . . . Terminal Hacks . | . . . . Fabricator Hacks . | . . . . Repair Station Hacks 2 | . . 2 . Scan Component 1 | . . 1 . Repair 1 | . . 1 . Recycling Unit Hacks . | . . . . Scanalyzer . | . . . . Garrison Access Hacks . | . . . . Unauthorized Hacks . | . . . . Terminals . | . . . . Fabricators . | . . . . Repair Stations . | . . . . Recycling Units . | . . . . Scanalyzers . | . . . . Garrison Access . | . . . . Data Cores Recovered 1 | . . 1 . Used . | . . . . Hacking Detections . | . . . . Full Trace Events . | . . . . Feedback Events . | . . . . Feedback Blocked . | . . . . Robot Schematics Acquired . | . . . . Robots Built . | . . . . Authchips . | . . . . Time . | . . . . Total Robot Build Rating . | . . . . Part Schematics Acquired . | . . . . Parts Built . | . . . . Authchips . | . . . . Time . | . . . . Total Part Build Rating . | . . . . Parts Repaired 1 | . . 1 . Time 38 | . . 38 . Parts Recycled . | . . . . Recycled Matter . | . . . . Retrieved Matter . | . . . . Retrieved Components . | . . . . Parts Scanalyzed . | . . . . Part Schematics Acquired . | . . . . Parts Damaged . | . . . . Bothacking | -11 -10 -9 -8 ------------ Run | Yrd Mat Mat Mat Used RIF Installer . | . . . . Robots Hacked . | . . . . Non-combat . | . . . . Combat . | . . . . Robot Hacks Applied . | . . . . Relay Couplers Released . | . . . . Fabnet Peak Effective % . | . . . . Robots Rewired . | . . . . Allies Hacked . | . . . . Hacks Repelled . | . . . . Allies | -11 -10 -9 -8 -------- Run | Yrd Mat Mat Mat Total Allies . | . . . . Largest Group . | . . . . Highest-Rated Group . | . . . . Highest-Rated Ally . | . . . . Total Orders . | . . . . Ally Attacks . | . . . . Total Damage . | . . . . Kills . | . . . . Allies Corrupted . | . . . . Allies Melted . | . . . . Intel | -11 -10 -9 -8 ------- Run | Yrd Mat Mat Mat Robot Analysis Total . | . . . . Derelict Logs Recovered . | . . . . Drone Launches . | . . . . Drone Recoveries . | . . . . Exploration | -11 -10 -9 -8 ------------- Run | Yrd Mat Mat Mat Turns Passed 3775 | 71 977 2074 653 Spaces Moved 1993 | 57 643 1041 252 Core 9 | 6 . . 3 Treads 1545 | . 257 1041 247 Legs 2 | . . . 2 Wheels 437 | 51 386 . . Hover . | . . . . Flight . | . . . . Fastest Speed 50 | 50 100 145 145 Average Speed 143 | 98 124 152 161 Slowest Speed 550 | 100 160 225 550 Overloaded Moves . | . . . . Propulsion Burnouts . | . . . . Robots Hopped . | . . . . Cave-ins Triggered . | . . . . Exploration Rate (%) 42 | 4 83 68 15 Regions Visited 3 Branch Regions . Pre-discovered Areas . | . . . . Known Exits Taken 2 | . 1 1 . Unknown Exits Taken 1 | 1 . . . Scrap Searched . | . . . . Spaces Dug 3 | . . 3 . Terrain Destroyed 3 | . . 3 . Melee 3 | . . 3 . Projectile . | . . . . AOE . | . . . . Terrain Rammed . | . . . . Walls Destroyed . | . . . . Machines Disabled . | . . . . Actions | -11 -10 -9 -8 --------- Run | Yrd Mat Mat Mat Total 2622 | 72 752 1397 401 Wait 272 | . 28 208 36 Move 1990 | 56 642 1040 252 Hop . | . . . . Pick Up 66 | 10 22 19 15 Fast Attach 1 | . . 1 . Attach 34 | 6 5 4 19 Detach . | . . . . Swap 48 | . 8 27 13 Drop 29 | . 7 16 6 Fire 155 | . 39 77 39 Melee 25 | . . 4 21 Ram . | . . . . Kick . | . . . . Crush 2 | . 1 1 . Escape Stasis . | . . . . Rewire . | . . . . Trap . | . . . . Miscellaneous . | . . . . Route ------- -11/Scrapyard -10/Materials (discovered 3 exits: *Mat x2 / *Min) -9/Materials (discovered 3 exits: *Mat / *Min / *Sto) -8/Materials History --------- Turn | Location | Event 8 | -11/Scrapyard | Discovered new exit (range 16) 72 | -11/Scrapyard | Entered Materials 147 | -10/Materials | Discovered new exit (range 13) 302 | -10/Materials | Build established: Mutant 535 | -10/Materials | Discovered new exit (range 10) 561 | -10/Materials | Core integrity fell below 50% 606 | -10/Materials | Lost 3 parts (1n1u1w) 867 | -10/Materials | Discovered new exit (range 9) 903 | -10/Materials | Core integrity fell below 20% 910 | -10/Materials | Identified exit to Mines 1045 | -10/Materials | Identified exit to Materials 1049 | -10/Materials | Entered another Materials area 1049 | -9/Materials | Evolved 2 slots: Utility x2 1134 | -9/Materials | Discovered new exit (range 15) 1277 | -9/Materials | Identified exit to Storage 1590 | -9/Materials | Discovered new exit (range 8) 1834 | -9/Materials | Identified exit to Mines 2947 | -9/Materials | Repaired Lgt. Nuclear Core 3070 | -9/Materials | Discovered new exit (range 13) 3121 | -9/Materials | Identified exit to Materials 3123 | -9/Materials | Entered another Materials area 3123 | -8/Materials | Evolved 2 slots: Utility x1, Weapon x1 3227 | -8/Materials | Core integrity fell below 50% 3251 | -8/Materials | Lost 7 parts (1p2n2u2w) 3746 | -8/Materials | Core integrity fell below 20% 3776 | -8/Materials | Destroyed by G-47 Trooper with Particle Gun Last Messages --------------- Acquired 26 matter. Imp. Signal Interpreter destroyed. Critical hit (Blast). K-01 Serf collects debris. W-25 Informer sends out distress signal. Penetrated by Slug. Knocked back. K-01 Serf collects debris. H-61 Shepherd destroyed. Switching to secondary target: G-47 Trooper. K-01 Serf collects debris. Enh. Autogun destroyed. K-01 Serf collects debris. Acquired Unknown Leg. Identified VSS Leg. K-01 Serf collects debris. Acquired 15 matter. K-01 Serf collects debris. Lrg. Storage Unit destroyed. Lgt. Nuclear Core destroyed. Map ----- +----------------------------------------------------+ | ?????????????????????????????????????????????????? | | ?????????????????????????????????????????????????? | | ?????????????????????????????????????????????????? | | ?????????????????????????????????????????????????? | | ?????????????????????????????????????????????????? | | ?????????????????????????????????????????????????? | | ?????????????????????????????????????????????????? | | ?????????????????????????????????????????????????? | | ?????????????????????????????????????????????????? | | ?????????????????????????????????????????????????? | | ?????????????????????????????????????????????????? | | ?????????????????????????????????????????????????? | | ?????????????????????????????????????????????????? | | ?????????????????????????????????????????????????? | | ????????????????????????????????? ???????????????? | | ??????????????????????????????# ##?????????????? | | ??????????????????????######## ??????????????? | | ??????????????????????? ? ??????????????? | | ???????????????????????? ? ??????????????? | | ????????????????????????? ? ???????????????? | | ????????????????????######+### ???????????????? | | ????????????????????# # #???????????????? | | ????????????????????# """"gg# #???????????????? | | ????????????????????# """ *!# #???????????????? | | ????????????????????# gr "=! # #???????????????? | | ????????????????????# g @ [#^^ #???????????????? | | ????????????????????# %=# ^ #???????????????? | | ????????????????????# " k!%# #???????????????? | | ????????????????????#g """!%!#* #???????????????? | | ????????????????? + !!%# #???????????????? | | ????????????????############## #???????????????? | | ???????????????????????????# " #???????????????? | | ???????????????????????????### #???????????????? | | ????????????????????????????## #???????????????? | | ?????????????????????????????# #??######???????? | | ?????????????????????????????# ## ##??????? | | ?????????????????????????????# # #??????? | | ?????????????????????????????# # #??????? | | ?????????????????????????????# # #??????? | | ?????????????????????????????# #??????? | | ?????????????????????????????# # # #???????? | | ?????????????????????????????# ###???###???????? | | ?????????????????????????????# #???????????????? | | ?????????????????????????????# #???????????????? | | ?????????????????????????????# #???????????????? | | ?????????????????????????????# #???????????????? | | ?????????????????????????????# #???????????????? | | ?????????????????????????????# #???????????????? | | ?????????????????????????????# #???????????????? | | ?????????????????????????????# ###########?????? | +----------------------------------------------------+ Best States ------------- Heat Dissipation 45 Energy Generation 14 Energy Capacity 265 Matter Stores 300 Matter Capacity 300 Sight Range 18 Robot Scan Range 14 Terrain Scan Range 16 Terrain Scan Density 10 Evasion (%) 40 Recoil Reduction 2 Item Schematics ----------------- None Robot Schematics ------------------ None Fabricated ------------ Nothing Alien Tech Used ----------------- None Achievements -------------- Close Call Challenges ------------ None Game ------ Seed OpticalPulseLegs Manual? 0 Play Time 00:25:09 Cumulative 10.0 hours Start 2024.05.28 @ 16:25:17 End 2024.05.28 @ 16:49:35 Sessions 1 Manual Loads 0 Difficulty Rogue Special Mode None Game No. 26 Rogue 26 Adventurer 0 Explorer 0 Win Type - Total 0 Types 0/0/0/0/0/0/0/0/0 Lore% 8 Gallery% 22 Achievement% 16 Wizard Run 0 Options --------- Layout 1 ASCII 0 Keyboard 0 Movement Arrows Keybinds 0 Fullscreen 2 Font 24/Smallcaps Map View 50x35 Zoom Use 0% Tactical HUD 0 Map Filters NONE Filters NONE Steam 1 RUN: e64abaed-f361-4e7c-a7d0-86ffd94f3289